[Event "16th EWICC 2015"]
[Site "Kutaisi"]
[Date "2015.06.02"]
[Round "8"]
[White "Zhukova, Natalia"]
[Black "Arabidze, Meri"]
[Result "1/2-1/2"]
[ECO "A27"]
[WhiteElo "2456"]
[BlackElo "2403"]
[Annotator "Robot 11"]
[PlyCount "88"]
[EventDate "2015.??.??"]
[EventCountry "GEO"]
[TimeControl "900+10"]

1. c4 {[%emt 0:00:07]} e5 {[%emt 0:00:03]} 2. Nc3 {[%emt 0:00:01]} Nc6 {[%emt
0:00:02]} 3. Nf3 {[%emt 0:00:04]} f5 {[%emt 0:00:01]} 4. d4 {[%emt 0:01:10]} e4
{[%emt 0:00:01]} 5. d5 {[%emt 0:00:10]} exf3 {[%emt 0:00:16]} 6. dxc6 {[%emt 0:
00:01]} fxg2 {[%emt 0:00:02]} 7. cxd7+ {[%emt 0:00:02]} Qxd7 {[%emt 0:00:07]}
8. Qxd7+ {[%emt 0:00:35]} Bxd7 {[%emt 0:00:01]} 9. Bxg2 {[%emt 0:00:01]} O-O-O
{[%emt 0:00:09]} 10. Bf4 {[%emt 0:00:03]} c6 {[%emt 0:02:08]} 11. Rc1 {[%emt 0:
00:06]} Be6 {[%emt 0:00:29]} 12. b3 {[%emt 0:01:09]} Ba3 {[%emt 0:00:48]} 13.
Rc2 {[%emt 0:00:01]} Ne7 {[%emt 0:00:35]} 14. O-O {[%emt 0:00:10]} Ng6 {[%emt
0:00:15]} 15. Bg5 {[%emt 0:00:48]} Rd7 {[%emt 0:00:15]} 16. Nd5 {[%emt 0:00:56]
} h6 {[%emt 0:04:36]} 17. Be3 {[%emt 0:00:25]} Kb8 {[%emt 0:00:17]} 18. Bf4+ {
[%emt 0:00:04]} Nxf4 {[%emt 0:00:34]} 19. Nxf4 {[%emt 0:00:01]} Bf7 {[%emt 0:
00:01]} 20. Nd3 {[%emt 0:00:05]} Bd6 {[%emt 0:00:15]} 21. b4 {[%emt 0:00:20]}
a6 {[%emt 0:00:38]} 22. a4 {[%emt 0:00:06]} Rc8 {[%emt 0:01:46]} 23. Rb1 {
[%emt 0:00:06]} Bf8 {[%emt 0:02:44]} 24. Ne5 {[%emt 0:02:54]} Re7 {[%emt 0:00:
03]} 25. f4 {[%emt 0:00:01]} g6 {[%emt 0:00:16]} 26. b5 {[%emt 0:00:18]} cxb5 {
[%emt 0:00:14]} 27. axb5 {[%emt 0:00:01]} a5 {[%emt 0:00:34]} 28. Ra1 {[%emt 0:
01:58]} Bg7 {[%emt 0:00:09]} 29. Rxa5 {[%emt 0:00:01]} Bxe5 {[%emt 0:00:04]}
30. fxe5 {[%emt 0:00:01]} Rxc4 {[%emt 0:00:23]} 31. Rd2 {[%emt 0:00:43]} Rc5 {
[%emt 0:00:45]} 32. b6 {[%emt 0:00:13]} Rc8 {[%emt 0:00:26]} 33. Rd1 {[%emt 0:
00:52]} Bc4 {[%emt 0:00:24]} 34. Rda1 {[%emt 0:00:57]} Ba6 {[%emt 0:00:01]} 35.
Rxa6 {[%emt 0:00:02]} bxa6 {[%emt 0:00:01]} 36. Rxa6 {[%emt 0:00:00]} Rb7 {
[%emt 0:00:21]} 37. Kf2 {[%emt 0:01:16]} Re8 {[%emt 0:00:14]} 38. Ra5 {[%emt 0:
00:01]} Re6 {[%emt 0:00:40]} 39. Bxb7 {[%emt 0:00:13]} Kxb7 {[%emt 0:00:01]}
40. e4 {[%emt 0:01:40]} Kxb6 {[%emt 0:00:19]} 41. exf5 {[%emt 0:00:42]} gxf5 {
[%emt 0:00:04]} 42. Rd5 {[%emt 0:00:02]} Kc6 {[%emt 0:00:02]} 43. Ra5 {[%emt 0:
00:01]} Kb6 {[%emt 0:00:08]} 44. Rd5 {[%emt 0:00:02]} Kc6 {[%emt 0:00:02]}
1/2-1/2

[Event "16th EWICC 2015"]
[Site "Kutaisi"]
[Date "2015.06.03"]
[Round "9"]
[White "Arabidze, Meri"]
[Black "Sviridova, Vlada"]
[Result "0-1"]
[ECO "D10"]
[WhiteElo "2403"]
[BlackElo "2087"]
[Annotator "Robot 11"]
[PlyCount "102"]
[EventDate "2015.??.??"]
[EventCountry "GEO"]
[TimeControl "900+10"]

1. d4 {[%emt 0:00:02]} d5 {[%emt 0:00:00]} 2. c4 {[%emt 0:00:02]} c6 {[%emt 0:
00:01]} 3. cxd5 {[%emt 0:00:02]} cxd5 {[%emt 0:00:01]} 4. Nc3 {[%emt 0:00:02]}
Nf6 {[%emt 0:00:01]} 5. Nf3 {[%emt 0:00:05]} Nc6 {[%emt 0:00:02]} 6. Bf4 {
[%emt 0:00:02]} a6 {[%emt 0:00:00]} 7. Rc1 {[%emt 0:00:06]} Bf5 {[%emt 0:00:03]
} 8. Qb3 {[%emt 0:00:15]} Na5 {[%emt 0:00:17]} 9. Qa4+ {[%emt 0:00:02]} b5 {
[%emt 0:01:09]} 10. Qd1 {[%emt 0:00:02]} e6 {[%emt 0:00:09]} 11. e3 {[%emt 0:
00:32]} Bd6 {[%emt 0:00:17]} 12. Ne5 {[%emt 0:01:04]} O-O {[%emt 0:00:28]} 13.
Bd3 {[%emt 0:00:19]} Bxd3 {[%emt 0:00:14]} 14. Qxd3 {[%emt 0:00:19]} Nc4 {
[%emt 0:00:53]} 15. b3 {[%emt 0:02:21]} Nxe5 {[%emt 0:01:41]} 16. dxe5 {[%emt
0:00:52]} Ba3 {[%emt 0:00:01]} 17. Rd1 {[%emt 0:01:54]} Nd7 {[%emt 0:00:19]}
18. e4 {[%emt 0:01:34]} Bb4 {[%emt 0:03:01]} 19. O-O {[%emt 0:04:34]} Nc5 {
[%emt 0:01:16]} 20. Qd4 {[%emt 0:00:00]} Bxc3 {[%emt 0:02:28]} 21. Qxc5 {[%emt
0:00:01]} Rc8 {[%emt 0:00:10]} 22. Qa3 {[%emt 0:00:29]} b4 {[%emt 0:01:48]} 23.
Qxa6 {[%emt 0:00:09]} Ra8 {[%emt 0:00:02]} 24. Qb7 {[%emt 0:00:40]} d4 {[%emt
0:00:30]} 25. Qb5 {[%emt 0:00:32]} Rxa2 {[%emt 0:00:13]} 26. Qd3 {[%emt 0:00:
01]} Qa5 {[%emt 0:00:34]} 27. Qg3 {[%emt 0:00:11]} Kh8 {[%emt 0:00:01]} 28. h4
{[%emt 0:00:26]} Rb2 {[%emt 0:00:05]} 29. Ra1 {[%emt 0:00:26]} Ra2 {[%emt 0:00:
10]} 30. Rab1 {[%emt 0:00:04]} Qa8 {[%emt 0:00:44]} 31. Qf3 {[%emt 0:00:11]}
Rd8 {[%emt 0:00:28]} 32. Rfd1 {[%emt 0:00:18]} Qa6 {[%emt 0:00:06]} 33. h5 {
[%emt 0:00:32]} Qe2 {[%emt 0:00:08]} 34. Qg3 {[%emt 0:00:15]} Qxe4 {[%emt 0:00:
08]} 35. h6 {[%emt 0:00:07]} Qg6 {[%emt 0:00:26]} 36. Bg5 {[%emt 0:00:18]} Rd7
{[%emt 0:00:35]} 37. Rd3 {[%emt 0:00:41]} Rda7 {[%emt 0:00:23]} 38. Qh3 {[%emt
0:00:36]} Qxg5 {[%emt 0:00:39]} 39. hxg7+ {[%emt 0:00:06]} Kg8 {[%emt 0:00:44]}
40. Qf3 {[%emt 0:00:42]} Qxe5 {[%emt 0:00:09]} 41. Qc6 {[%emt 0:00:04]} Ra8 {
[%emt 0:00:08]} 42. Rg3 {[%emt 0:00:03]} Qf5 {[%emt 0:00:06]} 43. Rf1 {[%emt 0:
00:07]} d3 {[%emt 0:00:12]} 44. Qd7 {[%emt 0:00:10]} d2 {[%emt 0:00:05]} 45.
Rf3 {[%emt 0:00:08]} Qg6 {[%emt 0:00:14]} 46. Rg3 {[%emt 0:00:01]} Qf5 {[%emt
0:00:05]} 47. Rf3 {[%emt 0:00:01]} Qxf3 {[%emt 0:00:25]} 48. gxf3 {[%emt 0:00:
02]} Ra1 {[%emt 0:00:01]} 49. Qc6 {[%emt 0:01:24]} Rxf1+ {[%emt 0:00:02]} 50.
Kg2 {[%emt 0:00:03]} d1=Q {[%emt 0:00:20]} 51. Qxa8+ {[%emt 0:00:01]} Kxg7 {
[%emt 0:00:01]} 0-1

[Event "16th EWICC 2015"]
[Site "Kutaisi"]
[Date "2015.06.03"]
[Round "9"]
[White "Arakhamia-Grant, Ketevan"]
[Black "Paehtz, Elisabeth"]
[Result "0-1"]
[ECO "B06"]
[WhiteElo "2393"]
[BlackElo "2473"]
[Annotator "Robot 11"]
[PlyCount "88"]
[EventDate "2015.??.??"]
[EventCountry "GEO"]
[TimeControl "900+10"]

1. e4 {[%emt 0:00:02]} g6 {[%emt 0:00:01]} 2. d4 {[%emt 0:00:05]} Bg7 {[%emt 0:
00:01]} 3. Nc3 {[%emt 0:00:08]} d6 {[%emt 0:00:01]} 4. Nf3 {[%emt 0:02:12]} a6
{[%emt 0:00:04]} 5. a4 {[%emt 0:01:46]} Bg4 {[%emt 0:00:33]} 6. Be3 {[%emt 0:
00:13]} Nc6 {[%emt 0:00:05]} 7. Be2 {[%emt 0:00:13]} e5 {[%emt 0:01:32]} 8. d5
{[%emt 0:00:29]} Nce7 {[%emt 0:01:55]} 9. Nd2 {[%emt 0:00:21]} Bd7 {[%emt 0:00:
05]} 10. O-O {[%emt 0:00:11]} f5 {[%emt 0:00:03]} 11. f4 {[%emt 0:04:42]} Bh6 {
[%emt 0:02:38]} 12. Nc4 {[%emt 0:00:18]} Qb8 {[%emt 0:01:50]} 13. Kh1 {[%emt 0:
00:41]} b5 {[%emt 0:00:48]} 14. axb5 {[%emt 0:01:50]} axb5 {[%emt 0:00:01]} 15.
Rxa8 {[%emt 0:00:03]} Qxa8 {[%emt 0:00:01]} 16. fxe5 {[%emt 0:00:03]} bxc4 {
[%emt 0:00:07]} 17. Bxh6 {[%emt 0:00:10]} Nxh6 {[%emt 0:00:01]} 18. e6 {[%emt
0:00:30]} O-O {[%emt 0:02:44]} 19. exd7 {[%emt 0:00:14]} Qd8 {[%emt 0:00:47]}
20. e5 {[%emt 0:00:34]} Qxd7 {[%emt 0:01:45]} 21. e6 {[%emt 0:00:30]} Qd8 {
[%emt 0:00:09]} 22. h3 {[%emt 0:00:18]} f4 {[%emt 0:00:24]} 23. Qd4 {[%emt 0:
01:27]} g5 {[%emt 0:00:26]} 24. Qxc4 {[%emt 0:00:53]} Nhf5 {[%emt 0:00:11]} 25.
Rf2 {[%emt 0:00:03]} Qb8 {[%emt 0:00:26]} 26. Ne4 {[%emt 0:00:42]} Qb6 {[%emt
0:00:27]} 27. Kh2 {[%emt 0:00:18]} Ne3 {[%emt 0:00:14]} 28. Qc3 {[%emt 0:00:18]
} N7xd5 {[%emt 0:00:32]} 29. Qd3 {[%emt 0:00:01]} Rf5 {[%emt 0:00:41]} 30. Bg4
{[%emt 0:00:06]} Re5 {[%emt 0:00:12]} 31. e7 {[%emt 0:00:07]} Kg7 {[%emt 0:00:
18]} 32. c4 {[%emt 0:00:02]} Nxe7 {[%emt 0:00:02]} 33. c5 {[%emt 0:00:07]} Qc6
{[%emt 0:00:10]} 34. Bf3 {[%emt 0:00:02]} d5 {[%emt 0:00:05]} 35. Qd4 {[%emt 0:
00:03]} Ng6 {[%emt 0:00:22]} 36. Nxg5 {[%emt 0:00:01]} Nf5 {[%emt 0:00:06]} 37.
Qc3 {[%emt 0:00:03]} Qf6 {[%emt 0:00:07]} 38. Bh5 {[%emt 0:00:06]} Qxg5 {[%emt
0:00:07]} 39. Bxg6 {[%emt 0:00:02]} d4 {[%emt 0:00:13]} 40. Qa5 {[%emt 0:00:12]
} hxg6 {[%emt 0:00:02]} 41. Qxc7+ {[%emt 0:00:02]} Ne7 {[%emt 0:00:06]} 42. b4
{[%emt 0:00:18]} Qg3+ {[%emt 0:00:12]} 43. Kg1 {[%emt 0:00:02]} Re1+ {[%emt 0:
00:03]} 44. Rf1 {[%emt 0:00:01]} Qe3+ {[%emt 0:00:01]} 0-1

[Event "16th EWICC 2015"]
[Site "Kutaisi"]
[Date "2015.06.03"]
[Round "9"]
[White "Charkhalashvili, Inga"]
[Black "Zhukova, Natalia"]
[Result "0-1"]
[ECO "A37"]
[WhiteElo "2318"]
[BlackElo "2456"]
[Annotator "Robot 11"]
[PlyCount "96"]
[EventDate "2015.??.??"]
[EventCountry "GEO"]
[TimeControl "900+10"]

1. Nf3 {[%emt 0:00:03]} c5 {[%emt 0:00:04]} 2. g3 {[%emt 0:00:06]} Nc6 {[%emt
0:00:05]} 3. c4 {[%emt 0:00:19]} g6 {[%emt 0:00:07]} 4. Bg2 {[%emt 0:00:14]}
Bg7 {[%emt 0:00:02]} 5. Nc3 {[%emt 0:00:02]} d6 {[%emt 0:00:03]} 6. O-O {[%emt
0:00:24]} e6 {[%emt 0:00:04]} 7. e3 {[%emt 0:00:37]} Nge7 {[%emt 0:00:28]} 8.
d4 {[%emt 0:00:12]} b6 {[%emt 0:02:53]} 9. d5 {[%emt 0:01:50]} Na5 {[%emt 0:00:
02]} 10. Nd2 {[%emt 0:01:13]} Rb8 {[%emt 0:00:18]} 11. Qc2 {[%emt 0:01:10]} O-O
{[%emt 0:03:34]} 12. Rd1 {[%emt 0:00:30]} exd5 {[%emt 0:00:43]} 13. Nxd5 {
[%emt 0:00:06]} Bg4 {[%emt 0:02:30]} 14. Re1 {[%emt 0:00:56]} Qd7 {[%emt 0:00:
03]} 15. Nxe7+ {[%emt 0:01:32]} Qxe7 {[%emt 0:00:01]} 16. Nb3 {[%emt 0:00:23]}
Bf5 {[%emt 0:01:10]} 17. e4 {[%emt 0:00:12]} Nc6 {[%emt 0:00:02]} 18. Bf4 {
[%emt 0:00:48]} Be6 {[%emt 0:00:01]} 19. Rad1 {[%emt 0:00:18]} Rfd8 {[%emt 0:
00:01]} 20. Nd2 {[%emt 0:02:20]} b5 {[%emt 0:00:34]} 21. cxb5 {[%emt 0:01:04]}
Nb4 {[%emt 0:00:18]} 22. Qb1 {[%emt 0:01:28]} Bxa2 {[%emt 0:00:09]} 23. Qa1 {
[%emt 0:00:01]} Be6 {[%emt 0:00:08]} 24. Qa5 {[%emt 0:00:31]} Nd3 {[%emt 0:00:
23]} 25. Re2 {[%emt 0:00:29]} Nxb2 {[%emt 0:00:10]} 26. Rb1 {[%emt 0:00:02]}
Nd3 {[%emt 0:00:46]} 27. Be3 {[%emt 0:00:20]} Nb4 {[%emt 0:00:21]} 28. Bf1 {
[%emt 0:00:46]} Bg4 {[%emt 0:00:29]} 29. f3 {[%emt 0:00:08]} Bd7 {[%emt 0:00:
02]} 30. Ree1 {[%emt 0:00:03]} Nc2 {[%emt 0:00:02]} 31. Bf2 {[%emt 0:00:22]}
Nxe1 {[%emt 0:00:04]} 32. Rxe1 {[%emt 0:00:01]} Rb7 {[%emt 0:00:25]} 33. e5 {
[%emt 0:00:08]} dxe5 {[%emt 0:00:13]} 34. Ne4 {[%emt 0:00:08]} Rc8 {[%emt 0:00:
24]} 35. Rc1 {[%emt 0:00:25]} Rbc7 {[%emt 0:01:20]} 36. b6 {[%emt 0:00:03]}
axb6 {[%emt 0:00:03]} 37. Qxb6 {[%emt 0:00:01]} Rc6 {[%emt 0:00:40]} 38. Qb7 {
[%emt 0:00:10]} c4 {[%emt 0:00:14]} 39. Rd1 {[%emt 0:00:54]} R6c7 {[%emt 0:00:
04]} 40. Qb6 {[%emt 0:00:20]} Be6 {[%emt 0:00:21]} 41. Nd6 {[%emt 0:00:29]} Rd8
{[%emt 0:00:10]} 42. Bc5 {[%emt 0:00:18]} Qd7 {[%emt 0:00:34]} 43. Bb4 {[%emt
0:00:14]} Rc6 {[%emt 0:00:06]} 44. Qe3 {[%emt 0:00:06]} Bf8 {[%emt 0:00:18]}
45. Ne4 {[%emt 0:00:05]} Qxd1 {[%emt 0:00:13]} 46. Nf6+ {[%emt 0:00:06]} Kh8 {
[%emt 0:00:23]} 47. Bc3 {[%emt 0:00:22]} Bg7 {[%emt 0:00:08]} 48. Bxe5 {[%emt
0:00:02]} Bh3 {[%emt 0:00:16]} 0-1

[Event "16th EWICC 2015"]
[Site "Kutaisi"]
[Date "2015.06.03"]
[Round "9"]
[White "Choladze, Mariam"]
[Black "Mammadova, Narmin"]
[Result "1-0"]
[ECO "C03"]
[WhiteElo "1989"]
[BlackElo "2117"]
[Annotator "Robot 11"]
[PlyCount "119"]
[EventDate "2015.??.??"]
[EventCountry "GEO"]
[TimeControl "900+10"]

1. e4 {[%emt 0:00:02]} e6 {[%emt 0:00:01]} 2. d4 {[%emt 0:00:02]} d5 {[%emt 0:
00:01]} 3. Nd2 {[%emt 0:00:05]} h6 {[%emt 0:00:04]} 4. Ngf3 {[%emt 0:01:43]}
Nf6 {[%emt 0:00:02]} 5. Bd3 {[%emt 0:00:16]} c5 {[%emt 0:00:24]} 6. e5 {[%emt
0:00:40]} Nfd7 {[%emt 0:00:14]} 7. c3 {[%emt 0:00:02]} Nc6 {[%emt 0:00:01]} 8.
O-O {[%emt 0:00:06]} g5 {[%emt 0:00:02]} 9. Bb5 {[%emt 0:01:48]} Qb6 {[%emt 0:
02:14]} 10. Bxc6 {[%emt 0:00:16]} bxc6 {[%emt 0:00:13]} 11. Nb3 {[%emt 0:00:15]
} c4 {[%emt 0:01:19]} 12. Nbd2 {[%emt 0:00:31]} Be7 {[%emt 0:00:06]} 13. b3 {
[%emt 0:00:32]} cxb3 {[%emt 0:00:10]} 14. Nxb3 {[%emt 0:00:30]} Ba6 {[%emt 0:
00:24]} 15. Re1 {[%emt 0:00:14]} Rb8 {[%emt 0:02:53]} 16. Be3 {[%emt 0:00:16]}
Qc7 {[%emt 0:01:50]} 17. Rb1 {[%emt 0:00:43]} Bb5 {[%emt 0:02:11]} 18. Nfd2 {
[%emt 0:02:35]} a5 {[%emt 0:01:16]} 19. Nc1 {[%emt 0:01:52]} h5 {[%emt 0:02:44]
} 20. a4 {[%emt 0:00:42]} Ba6 {[%emt 0:00:01]} 21. Rxb8+ {[%emt 0:00:04]} Qxb8
{[%emt 0:00:08]} 22. Qb3 {[%emt 0:00:02]} Qxb3 {[%emt 0:00:50]} 23. Ncxb3 {
[%emt 0:00:03]} Bd8 {[%emt 0:00:05]} 24. Rc1 {[%emt 0:00:50]} Kf8 {[%emt 0:01:
13]} 25. c4 {[%emt 0:00:15]} Bb7 {[%emt 0:00:05]} 26. cxd5 {[%emt 0:00:16]}
exd5 {[%emt 0:00:27]} 27. Nc5 {[%emt 0:00:25]} Nxc5 {[%emt 0:00:05]} 28. Rxc5 {
[%emt 0:00:03]} Kg7 {[%emt 0:00:17]} 29. Nb3 {[%emt 0:00:08]} Bb6 {[%emt 0:00:
02]} 30. Rc1 {[%emt 0:00:09]} Kg6 {[%emt 0:00:14]} 31. Bd2 {[%emt 0:00:35]} Ra8
{[%emt 0:00:09]} 32. f3 {[%emt 0:01:29]} Kf5 {[%emt 0:00:13]} 33. h4 {[%emt 0:
00:51]} gxh4 {[%emt 0:00:05]} 34. Kh2 {[%emt 0:00:06]} Bd8 {[%emt 0:00:12]} 35.
Kh3 {[%emt 0:00:30]} Kg6 {[%emt 0:00:05]} 36. Rc5 {[%emt 0:00:49]} Bb6 {[%emt
0:00:13]} 37. Rc1 {[%emt 0:00:01]} Bd8 {[%emt 0:00:02]} 38. Kh2 {[%emt 0:00:15]
} Bc7 {[%emt 0:00:15]} 39. Nc5 {[%emt 0:00:12]} Bc8 {[%emt 0:00:17]} 40. Nd3 {
[%emt 0:00:02]} Bd7 {[%emt 0:00:12]} 41. Nf4+ {[%emt 0:00:02]} Kg7 {[%emt 0:00:
12]} 42. Nxh5+ {[%emt 0:00:02]} Kf8 {[%emt 0:00:09]} 43. Nf6 {[%emt 0:00:02]}
Ke7 {[%emt 0:00:05]} 44. Bg5 {[%emt 0:00:18]} Ke6 {[%emt 0:00:14]} 45. Bxh4 {
[%emt 0:00:25]} Rb8 {[%emt 0:00:15]} 46. Be1 {[%emt 0:00:36]} Rb2 {[%emt 0:00:
08]} 47. Ra1 {[%emt 0:00:48]} Bb6 {[%emt 0:00:01]} 48. Bc3 {[%emt 0:00:05]} Rc2
{[%emt 0:00:00]} 49. Ra3 {[%emt 0:00:07]} Ke7 {[%emt 0:00:10]} 50. Rb3 {[%emt
0:00:10]} Rxc3 {[%emt 0:00:31]} 51. Rxb6 {[%emt 0:00:24]} Bf5 {[%emt 0:00:01]}
52. g4 {[%emt 0:00:14]} Bc2 {[%emt 0:00:01]} 53. Kg3 {[%emt 0:00:05]} Bxa4 {
[%emt 0:00:01]} 54. Ra6 {[%emt 0:00:05]} Bd1 {[%emt 0:00:05]} 55. Rxa5 {[%emt
0:00:09]} Rxf3+ {[%emt 0:00:04]} 56. Kh4 {[%emt 0:00:01]} Rd3 {[%emt 0:00:12]}
57. Ra7+ {[%emt 0:00:19]} Kf8 {[%emt 0:00:10]} 58. Ra8+ {[%emt 0:00:04]} Kg7 {
[%emt 0:00:10]} 59. Rg8+ {[%emt 0:00:04]} Kh6 {[%emt 0:00:01]} 60. g5# {[%emt
0:00:01]} 1-0

[Event "16th EWICC 2015"]
[Site "Kutaisi"]
[Date "2015.06.03"]
[Round "9"]
[White "Choladze, Tea"]
[Black "Kostava, Elene"]
[Result "1-0"]
[ECO "B12"]
[WhiteElo "1755"]
[BlackElo "1691"]
[Annotator "Robot 11"]
[PlyCount "57"]
[EventDate "2015.??.??"]
[EventCountry "GEO"]
[TimeControl "900+10"]

1. e4 {[%emt 0:00:03]} c6 {[%emt 0:00:02]} 2. d4 {[%emt 0:00:02]} d5 {[%emt 0:
00:01]} 3. f3 {[%emt 0:00:17]} Qb6 {[%emt 0:00:02]} 4. Nc3 {[%emt 0:00:06]}
dxe4 {[%emt 0:00:02]} 5. fxe4 {[%emt 0:00:02]} e5 {[%emt 0:00:04]} 6. Nf3 {
[%emt 0:00:54]} Bg4 {[%emt 0:01:03]} 7. Na4 {[%emt 0:00:23]} Qa5+ {[%emt 0:00:
27]} 8. c3 {[%emt 0:00:09]} exd4 {[%emt 0:01:40]} 9. Qxd4 b5 {[%emt 0:02:14]}
10. Qe5+ {[%emt 0:00:42]} Ne7 {[%emt 0:00:02]} 11. Nc5 {[%emt 0:00:07]} f6 {
[%emt 0:00:40]} 12. Qd4 {[%emt 0:00:41]} Ng6 {[%emt 0:01:12]} 13. Nd2 {[%emt 0:
02:28]} Nd7 {[%emt 0:01:43]} 14. Nxd7 {[%emt 0:00:45]} Bxd7 {[%emt 0:00:02]}
15. Nb3 {[%emt 0:00:02]} Qc7 {[%emt 0:00:21]} 16. Be3 {[%emt 0:00:06]} a5 {
[%emt 0:00:36]} 17. O-O-O {[%emt 0:00:19]} b4 {[%emt 0:00:55]} 18. Nc5 {[%emt
0:00:33]} Bg4 {[%emt 0:00:27]} 19. Rd2 {[%emt 0:00:20]} bxc3 {[%emt 0:00:54]}
20. Qxc3 {[%emt 0:00:10]} Bd6 {[%emt 0:00:02]} 21. h3 {[%emt 0:00:17]} Bc8 {
[%emt 0:00:05]} 22. Bc4 {[%emt 0:01:28]} Qe7 {[%emt 0:00:55]} 23. Bb3 {[%emt 0:
01:05]} Ne5 {[%emt 0:01:39]} 24. Rhd1 {[%emt 0:00:22]} Bc7 {[%emt 0:00:13]} 25.
Na4 {[%emt 0:00:28]} Bb7 {[%emt 0:00:19]} 26. Bc5 {[%emt 0:00:15]} Qd7 {[%emt
0:01:36]} 27. Rxd7 {[%emt 0:00:06]} Nxd7 {[%emt 0:00:02]} 28. Qc4 {[%emt 0:00:
10]} Ne5 {[%emt 0:00:13]} 29. Qe6# {[%emt 0:00:01]} 1-0

[Event "16th EWICC 2015"]
[Site "Kutaisi"]
[Date "2015.06.03"]
[Round "9"]
[White "Esadze, Tamar"]
[Black "Donghvani, Nia"]
[Result "1-0"]
[ECO "C72"]
[WhiteElo "1697"]
[BlackElo "1444"]
[Annotator "Robot 11"]
[PlyCount "63"]
[EventDate "2015.??.??"]
[EventCountry "GEO"]
[TimeControl "900+10"]

1. e4 e5 2. Nf3 Nc6 3. Bb5 a6 4. Ba4 d6 5. O-O Bd7 6. c3 g5 7. d4 {[%emt 0:01:
35]} g4 {[%emt 0:01:39]} 8. Nfd2 {[%emt 0:01:03]} h5 {[%emt 0:06:24]} 9. f3 {
[%emt 0:02:18]} exd4 {[%emt 0:04:32]} 10. Bxc6 {[%emt 0:00:53]} Bxc6 {[%emt 0:
01:11]} 11. fxg4 {[%emt 0:02:25]} hxg4 {[%emt 0:00:50]} 12. Qxg4 {[%emt 0:00:
33]} Qe7 {[%emt 0:00:38]} 13. cxd4 {[%emt 0:02:35]} Bd7 {[%emt 0:00:36]} 14.
Qf3 {[%emt 0:00:34]} O-O-O {[%emt 0:00:30]} 15. Nc3 {[%emt 0:00:36]} Bh6 {
[%emt 0:00:18]} 16. Nd5 {[%emt 0:00:37]} Qe6 {[%emt 0:00:16]} 17. Nc4 {[%emt 0:
01:04]} Bxc1 {[%emt 0:00:07]} 18. Raxc1 {[%emt 0:00:06]} Qh6 {[%emt 0:00:03]}
19. h3 {[%emt 0:00:35]} Bb5 {[%emt 0:00:15]} 20. b3 {[%emt 0:00:43]} Qg6 {
[%emt 0:00:19]} 21. Qf5+ {[%emt 0:00:20]} Qxf5 {[%emt 0:00:02]} 22. Rxf5 {
[%emt 0:00:02]} Bd7 {[%emt 0:00:02]} 23. Rxf7 {[%emt 0:00:12]} Nh6 {[%emt 0:00:
07]} 24. Ncb6+ {[%emt 0:00:14]} Kb8 {[%emt 0:00:02]} 25. Nxd7+ {[%emt 0:00:03]}
Ka7 {[%emt 0:00:08]} 26. Rg7 {[%emt 0:00:07]} Rhe8 {[%emt 0:00:18]} 27. Rxc7 {
[%emt 0:00:13]} Rxe4 {[%emt 0:00:05]} 28. N7f6 {[%emt 0:00:15]} Rxd4 {[%emt 0:
00:24]} 29. Rxb7+ {[%emt 0:00:02]} Ka8 {[%emt 0:00:00]} 30. Ra7+ {[%emt 0:00:
01]} Kb8 {[%emt 0:00:02]} 31. Rgb7+ {[%emt 0:00:02]} Kc8 {[%emt 0:00:01]} 32.
Nb6# {[%emt 0:00:02]} 1-0

[Event "16th EWICC 2015"]
[Site "Kutaisi"]
[Date "2015.06.03"]
[Round "9"]
[White "Gaponenko, Inna"]
[Black "Batsiashvili, Nino"]
[Result "1/2-1/2"]
[ECO "C47"]
[WhiteElo "2391"]
[BlackElo "2473"]
[Annotator "Robot 11"]
[PlyCount "120"]
[EventDate "2015.??.??"]
[EventCountry "GEO"]
[TimeControl "900+10"]

1. e4 {[%emt 0:00:02]} e5 {[%emt 0:00:01]} 2. Nf3 {[%emt 0:00:01]} Nc6 {[%emt
0:00:01]} 3. Nc3 {[%emt 0:00:01]} Nf6 {[%emt 0:00:15]} 4. d4 {[%emt 0:00:01]}
exd4 {[%emt 0:00:06]} 5. Nxd4 {[%emt 0:00:02]} Bb4 {[%emt 0:00:01]} 6. Nxc6 {
[%emt 0:00:02]} bxc6 {[%emt 0:00:01]} 7. Bd3 {[%emt 0:00:02]} O-O {[%emt 0:00:
17]} 8. O-O {[%emt 0:00:02]} d5 {[%emt 0:00:01]} 9. exd5 {[%emt 0:00:02]} cxd5
{[%emt 0:00:01]} 10. Bg5 {[%emt 0:00:46]} c6 {[%emt 0:00:07]} 11. Qf3 {[%emt 0:
00:02]} h6 {[%emt 0:00:23]} 12. Bxf6 {[%emt 0:00:08]} Qxf6 {[%emt 0:00:01]} 13.
Qxf6 {[%emt 0:00:02]} gxf6 {[%emt 0:00:01]} 14. Ne2 {[%emt 0:00:06]} Rb8 {
[%emt 0:00:33]} 15. Ng3 {[%emt 0:02:37]} Ba5 {[%emt 0:01:25]} 16. Rab1 {[%emt
0:01:34]} Re8 {[%emt 0:00:09]} 17. Nf5 {[%emt 0:01:25]} Bxf5 {[%emt 0:00:24]}
18. Bxf5 {[%emt 0:00:02]} Re5 {[%emt 0:00:41]} 19. Bd3 {[%emt 0:00:29]} Kf8 {
[%emt 0:00:19]} 20. g3 {[%emt 0:02:17]} Ke7 {[%emt 0:00:18]} 21. c4 {[%emt 0:
01:53]} d4 {[%emt 0:00:16]} 22. Rfd1 {[%emt 0:00:10]} c5 {[%emt 0:00:20]} 23.
Kg2 {[%emt 0:01:11]} Bc7 {[%emt 0:00:57]} 24. Re1 {[%emt 0:03:29]} Kd6 {[%emt
0:00:09]} 25. Re4 {[%emt 0:00:04]} Rxe4 {[%emt 0:01:52]} 26. Bxe4 {[%emt 0:00:
01]} Ke5 {[%emt 0:00:18]} 27. Bd3 {[%emt 0:00:11]} f5 {[%emt 0:00:04]} 28. Kf3
{[%emt 0:01:05]} Kf6 {[%emt 0:00:09]} 29. b3 {[%emt 0:00:02]} a5 {[%emt 0:00:
48]} 30. Re1 {[%emt 0:00:17]} h5 {[%emt 0:01:43]} 31. h3 {[%emt 0:00:29]} a4 {
[%emt 0:00:46]} 32. bxa4 {[%emt 0:01:00]} Rb4 {[%emt 0:00:01]} 33. Re8 {[%emt
0:00:02]} Rxa4 {[%emt 0:00:04]} 34. Rh8 {[%emt 0:00:30]} Ra3 {[%emt 0:00:02]}
35. Ke2 {[%emt 0:00:01]} Rxa2+ {[%emt 0:00:01]} 36. Kf3 {[%emt 0:00:01]} Rd2 {
[%emt 0:00:50]} 37. Bf1 {[%emt 0:00:01]} Rb2 {[%emt 0:02:44]} 38. Bd3 {[%emt 0:
00:12]} Rd2 {[%emt 0:02:03]} 39. Bf1 {[%emt 0:00:01]} Ba5 {[%emt 0:00:17]} 40.
Rxh5 {[%emt 0:00:09]} Bb4 {[%emt 0:00:10]} 41. g4 {[%emt 0:00:26]} fxg4+ {
[%emt 0:00:10]} 42. hxg4 {[%emt 0:00:01]} Ke6 {[%emt 0:00:12]} 43. Rf5 {[%emt
0:00:12]} f6 {[%emt 0:00:20]} 44. Rf4 {[%emt 0:00:18]} Rb2 {[%emt 0:00:23]} 45.
Bd3 {[%emt 0:00:13]} Rd2 {[%emt 0:00:46]} 46. Bf1 {[%emt 0:00:01]} Ba3 {[%emt
0:00:11]} 47. Rf5 {[%emt 0:00:29]} Rd1 {[%emt 0:00:24]} 48. Be2 {[%emt 0:00:07]
} Rh1 {[%emt 0:00:10]} 49. Bd3 {[%emt 0:00:18]} Bb4 {[%emt 0:00:21]} 50. Rf4 {
[%emt 0:00:03]} Rd1 {[%emt 0:00:32]} 51. Be2 {[%emt 0:00:06]} Rc1 {[%emt 0:00:
11]} 52. Bd3 {[%emt 0:00:02]} Rc3 {[%emt 0:00:08]} 53. Ke2 {[%emt 0:00:01]} Ra3
{[%emt 0:00:01]} 54. Bf5+ {[%emt 0:00:42]} Kf7 {[%emt 0:00:19]} 55. Bd3 {[%emt
0:00:01]} Ra2+ {[%emt 0:00:07]} 56. Kf3 {[%emt 0:00:09]} Be1 {[%emt 0:00:08]}
57. Kg2 {[%emt 0:00:29]} Ra3 {[%emt 0:00:22]} 58. Rf3 {[%emt 0:00:04]} Ke7 {
[%emt 0:00:09]} 59. Kf1 {[%emt 0:00:03]} Bb4 {[%emt 0:00:08]} 60. Ke2 {[%emt 0:
00:07]} Ra2+ {[%emt 0:00:09]} 1/2-1/2